Cogmind - Beta 16 --- EXPLORER MODE // 2025.11.16 @ 21:27:38 Player: ralann Result: Destroyed by V4-GA0(R) with Subdweller Laser Performance ------------- Evolutions (0) 0 Regions Visited (2) 400 Robots Destroyed (2) 10 Value Destroyed (68) 68 Prototype IDs (0) 0 Alien Tech Used (0) 0 Bonus (0) 0 TOTAL SCORE: 478 Bonus ------- None Cogmind --------- Core Integrity 0/250 Matter 300/300 Energy 100/100 System Corruption 0% Temperature Cool (6) Movement Core (200) Ox3 Location -10/Subcaves Parts ------- > --- POWER (1) -------- (None) > --- PROPULSION (2) --- (None) > --- UTILITY (3) ------ Medium Storage Unit Targeting Computer Utility Shielding > --- WEAPON (2) ------- (None) > --- INVENTORY (10) --- High-capacity Matter Pod (106) Targeting Computer Beam Cannon Beam Cannon Beam Cannon Flamer Peak State ------------ > --- POWER ------------ Light Ion Engine > --- PROPULSION ------- Light Treads Light Treads > --- UTILITY ---------- Medium Storage Unit Targeting Computer Light Armor Plating > --- WEAPON ----------- Medium Laser Light Assault Rifle > --- INVENTORY -------- Targeting Computer Utility Shielding EM Pulse Gun [Rating: 8] Favorites ----------- Power Light Ion Engine Engine Light Ion Engine Propulsion Light Treads Treads Light Treads Leg Aluminum Leg Utility Medium Storage Unit Storage Medium Storage Unit Processor Targeting Computer Protection Utility Shielding Weapon EM Pulse Gun Energy Gun EM Pulse Gun Energy Cannon Beam Cannon Ballistic Gun Light Assault Rifle Build | -11 -10 -10 ------- Run | Yrd Mat Sub Slots Evolved 1 | . 1 . Power . | . . . Propulsion . | . . . Utility 1 | . 1 . Weapon . | . . . Parts Attached 12 | 8 4 . Power 1 | 1 . . Engine 1 | 1 . . Core . | . . . Reactor . | . . . Propulsion 3 | 3 . . Treads 2 | 2 . . Leg 1 | 1 . . Wheel . | . . . Hover . | . . . Flight . | . . . Utility 4 | 2 2 . Device . | . . . Storage 1 | 1 . . Processor 1 | . 1 . Hackware . | . . . Protection 2 | 1 1 . Artifact . | . . . Weapon 4 | 2 2 . Energy Gun 2 | 1 1 . Energy Cannon 1 | . 1 . Ballistic Gun 1 | 1 . . Ballistic Cannon . | . . . Launcher . | . . . Special Weapon . | . . . Impact Weapon . | . . . Slashing Weapon . | . . . Piercing Weapon . | . . . Special Melee Weapon . | . . . Unidentified Prototypes . | . . . Parts Lost 8 | . 5 3 Power 1 | . 1 . Propulsion 2 | . 1 1 Utility 1 | . 1 . Weapon 4 | . 2 2 Highest Loss Streak 3 | . 3 3 To Critical Strikes . | . . . Average Backups 3 | 2 3 5 Power . | . . . Propulsion . | . . . Utility 1 | 1 1 2 Weapon 1 | . 2 3 Tool/Special . | . . . Unused Backups 6 | . . 6 Power . | . . . Propulsion . | . . . Utility 2 | . . 2 Weapon 4 | . . 4 Tool/Special . | . . . Average Slot Usage (%) 75 | . 76 73 Engine 1 | . 2 . Treads 13 | . 14 11 Storage 12 | . 12 12 Processor 11 | . 11 12 Protection 11 | . 10 12 Energy Gun 11 | . 12 11 Energy Cannon 8 | . 7 11 Ballistic Gun 1 | . 2 . Peak Build Rating 8 | 7 8 6 Average Rating 5 | 4 6 5 On Entrance 4 | . 7 6 Avg Prop Armor Cover (%) . | . . . Naked Turns . | . . . Heaviest Build 19 | 19 16 16 Greatest Support 40 | 40 20 20 Greatest Overweight (x) 1 | 1 . . Average Overweight (x) . | . . . Largest Inventory Capacity 10 | 10 10 10 Average Capacity 9 | 8 10 10 Most Carried 6 | 5 5 6 Average Carried 3 | 2 3 5 Final Capacity 10 | 10 10 10 Final Carried 6 | 4 5 6 Class Distribution -------------------- 100% | Hacker-Mutant Dominant Class ---------------- Hacker-Mutant | -10/Materials Hacker-Mutant | -10/Subcaves Resources | -11 -10 -10 ----------- Run | Yrd Mat Sub Matter Collected 379 | 234 54 91 Remotely . | . . . Salvage Created 79 | . 79 . Parts 3 | . 3 . Haulers Intercepted . | . . . Recyclers Shooed . | . . . Parts Field Recycled . | . . . Retrieved Matter . | . . . Parts Self-Destructed . | . . . Prevented . | . . . Parts Restored . | . . . Kills | -11 -10 -10 ------- Run | Yrd Mat Sub Combat Hostiles Destroyed 2 | . 2 . Guns 2 | . 2 . Classes Destroyed 1 | . 1 . Grunt 2 | . 2 . Best Kill Streak 1 | . 1 . Combat Bots Only 1 | . 1 . Max Kills in Single Turn 1 | . 1 . Gunslinging . | . . . Exploded . | . . . Melee . | . . . Uniques/NPCs Destroyed . | . . . Combat | -11 -10 -10 -------- Run | Yrd Mat Sub Hostile Shots Fired 178 | . 139 39 Missed 53 | . 39 14 Hits 125 | . 100 25 Projectile 125 | . 100 25 Damage Taken 1038 | . 670 368 Core 253 | . 102 151 Absorbed by Shields . | . . . Redirected to Shielding 11 | . . 11 Ignored by Resistances 653 | . 436 217 Core Remaining (%) 100 | 100 . . Volleys Fired 5 | . 5 . Largest 2 | . 2 . Hottest 70 | . 70 . Shots Fired 8 | . 8 . Gun 8 | . 8 . Cannon . | . . . Launcher . | . . . Special . | . . . Kinetic 3 | . 3 . Thermal 4 | . 4 . Explosive . | . . . Electromagnetic 1 | . 1 . Robot Hit Streak 3 | . 3 . Robot Miss Streak 1 | . 1 . Penetration Max . | . . . Secondary Targets . | . . . Shots Hit Robots 6 | . 6 . Core Hits 4 | . 4 . Critical Kills . | . . . Critical Parts Destroyed . | . . . Critical Strikes . | . . . Melee Attacks . | . . . Impact . | . . . Slashing . | . . . Piercing . | . . . Sneak Attacks . | . . . Combat Hostiles . | . . . Follow-up Attacks . | . . . Damage Inflicted 74 | 7 67 . Guns 67 | . 67 . Cannons . | . . . Explosions . | . . . Melee . | . . . Ramming 7 | 7 . . Kinetic 18 | . 18 . Thermal 37 | . 37 . Explosive . | . . . Electromagnetic 12 | . 12 . Impact . | . . . Slashing . | . . . Piercing . | . . . Highest Corruption . | . . . Average Corruption . | . . . Corruption Purged . | . . . Corruption Blocked . | . . . Overload Shots . | . . . Overflow Damage . | . . . Projectiles . | . . . Explosions . | . . . Melee . | . . . Knockbacks 1 | 1 . . Impact 1 | 1 . . Kinetic . | . . . Secondary . | . . . Self-Inflicted Damage . | . . . Shots . | . . . Rammed 2 | 2 . . Targets Rammed 2 | 2 . . Kicked . | . . . Crushed . | . . . Highest Temperature 36 | . 36 . Average Temperature 18 | . 18 . Received Heat Transfer 762 | . 600 162 Siege Activations . | . . . Martial Activations . | . . . Shielding Activations . | . . . Robots Disrupted . | . . . Combat Hostiles . | . . . Robots Corrupted . | . . . Combat Hostiles . | . . . Parts Fried . | . . . Impact Corruptions . | . . . Robots Melted . | . . . Combat Hostiles . | . . . Parts Melted . | . . . Heat Transferred 111 | . 111 . Parts Sabotaged . | . . . Parts Stolen . | . . . Parts Stripped . | . . . Power Chain Reactions . | . . . Alert | -11 -10 -10 ------- Run | Yrd Mat Sub Maximum Alert Level . | . . . Low Security (%) 100 | 100 100 . Level 1 . | . . . Level 2 . | . . . Level 3 . | . . . Level 4 . | . . . Level 5 . | . . . High Security . | . . . Max Security . | . . . Peak Influence 20 | . 20 . Initial . | . . . Average . | . . . Influence Increases 58 | . 58 . Destroy 0b10 Robot/C 40 | . 40 . Successful Hack 3 | . 3 . Lose Combat Pursuer 15 | . 15 . Influence Decreases 58 | . 58 . Time Decay 58 | . 58 . Squads Dispatched . | . . . Investigation . | . . . Extermination . | . . . Reinforcement . | . . . Assault . | . . . Garrison . | . . . Intercept . | . . . Searches Triggered . | . . . Construction Impeded . | . . . Haulers Reinforced . | . . . Active Scanning Responses . | . . . Cargo Convoy Interrupts . | . . . Stealth | -11 -10 -10 --------- Run | Yrd Mat Sub Distress Signals 3 | . 3 . Communications Jammed . | . . . Distress Signals . | . . . Times Spotted 41 | . 30 11 Peak Tracking Total 7 | . 3 7 Tactical Retreats 1 | . 1 . Traps | -11 -10 -10 ------- Run | Yrd Mat Sub Traps Triggered . | . . . Indirectly . | . . . Trap Hack Attempts . | . . . Triggered . | . . . Disarmed . | . . . Reprogrammed . | . . . Reused . | . . . Traps Extracted . | . . . Installed . | . . . Triggered . | . . . Machines | -11 -10 -10 ---------- Run | Yrd Mat Sub Machines Disabled . | . . . Max in Single Turn . | . . . Machines Repaired . | . . . Machines Dismantled . | . . . Machines Sabotaged . | . . . Overloaded Fab Kills . | . . . Hacking | -11 -10 -10 --------- Run | Yrd Mat Sub Machines Accessed 1 | . 1 . Terminals 1 | . 1 . Fabricators . | . . . Repair Stations . | . . . Recycling Units . | . . . Scanalyzers . | . . . Garrison Access . | . . . Total Hacks 3 | . 3 . Successful 2 | . 2 . Failed 1 | . 1 . Catastrophic . | . . . Database Lockouts . | . . . Manual . | . . . Terminals 3 | . 3 . Fabricators . | . . . Repair Stations . | . . . Recycling Units . | . . . Scanalyzers . | . . . Garrison Access . | . . . Terminal Hacks 2 | . 2 . Alert Level 1 | . 1 . Investigation Status 1 | . 1 . Fabricator Hacks . | . . . Repair Station Hacks . | . . . Recycling Unit Hacks . | . . . Scanalyzer . | . . . Garrison Access Hacks . | . . . Unauthorized Hacks . | . . . Terminals . | . . . Fabricators . | . . . Repair Stations . | . . . Recycling Units . | . . . Scanalyzers . | . . . Garrison Access . | . . . Data Cores Recovered . | . . . Used . | . . . Hacking Detections 1 | . 1 . Full Trace Events . | . . . Feedback Events . | . . . Feedback Blocked . | . . . Robot Schematics Acquired . | . . . Robots Built . | . . . Authchips . | . . . Time . | . . . Total Robot Build Rating . | . . . Part Schematics Acquired . | . . . Parts Built . | . . . Authchips . | . . . Time . | . . . Total Part Build Rating . | . . . Part Studies Acquired . | . . . Parts Repaired . | . . . Time . | . . . Parts Recycled . | . . . Recycled Matter . | . . . Retrieved Matter . | . . . Retrieved Components . | . . . Parts Scanalyzed . | . . . Part Schematics Acquired . | . . . Parts Damaged . | . . . Bothacking | -11 -10 -10 ------------ Run | Yrd Mat Sub Used RIF Installer . | . . . Robots Hacked . | . . . Non-combat . | . . . Combat . | . . . Robot Hacks Applied . | . . . Relay Couplers Released . | . . . Fabnet Peak Effective % . | . . . Robots Rewired . | . . . Allies Hacked . | . . . Hacks Repelled . | . . . Allies | -11 -10 -10 -------- Run | Yrd Mat Sub Total Allies . | . . . Largest Group . | . . . Highest-Rated Group . | . . . Highest-Rated Ally . | . . . Total Orders . | . . . Ally Attacks . | . . . Total Damage . | . . . Kills . | . . . Allies Corrupted . | . . . Allies Melted . | . . . Intel | -11 -10 -10 ------- Run | Yrd Mat Sub Active Infowar (turns) . | . . . Robot Analysis Total . | . . . Derelict Logs Recovered . | . . . Drone Launches . | . . . Drone Recoveries . | . . . Exploration | -11 -10 -10 ------------- Run | Yrd Mat Sub Turns Passed 5224 | 2282 2198 744 Spaces Moved 343 | 201 95 47 Core 11 | 11 . . Treads 321 | 179 95 47 Legs 11 | 11 . . Wheels . | . . . Hover . | . . . Flight . | . . . Fastest Speed 50 | 50 160 160 Average Speed 157 | 155 160 160 Slowest Speed 190 | 190 160 160 Overloaded Moves . | . . . Propulsion Burnouts . | . . . Robots Hopped . | . . . Potential Cave-ins . | . . . Cave-ins Triggered . | . . . Exploration Rate (%) 17 | 27 21 5 Regions Visited 2 Branch Regions 1 Pre-discovered Areas . | . . . Known Exits Taken 2 | 1 1 . Unknown Exits Taken . | . . . Scrap Searched . | . . . Spaces Dug . | . . . Terrain Destroyed . | . . . Melee . | . . . Projectile . | . . . AOE . | . . . Terrain Rammed . | . . . Walls Destroyed . | . . . Machines Disabled . | . . . Actions | -11 -10 -10 --------- Run | Yrd Mat Sub Total 5019 | 2169 2134 716 Wait 4640 | 1946 2026 668 Move 341 | 200 94 47 Hop . | . . . Pick Up 18 | 12 5 1 Fast Attach . | . . . Attach 11 | 7 4 . Detach . | . . . Swap 1 | 1 . . Drop 1 | 1 . . Fire 5 | . 5 . Melee . | . . . Ram . | . . . Kick . | . . . Crush 2 | 2 . . Escape Stasis . | . . . Rewire . | . . . Trap . | . . . Miscellaneous . | . . . Route ------- -11/Scrapyard -10/Materials -10/Subcaves (discovered 1 exit: *Mat) History --------- Turn | Location | Event 615 | -11/Scrapyard | Identified exit to Materials 615 | -11/Scrapyard | Discovered exit to Materials (range 14) 2283 | -11/Scrapyard | Entered Materials 2283 | -10/Materials | Evolved 1 slot: Utility x1 2284 | -10/Materials | Build established: Hacker-Mutant 2824 | -10/Materials | Lost 3 parts (1n1u1w) 4437 | -10/Materials | Identified exit to Subcaves 4437 | -10/Materials | Discovered exit to Subcaves (range 7) 4481 | -10/Materials | Entered Subcaves 4482 | -10/Subcaves | Approached by a straggling Scientist 5027 | -10/Subcaves | Identified exit to Materials 5027 | -10/Subcaves | Discovered exit to Materials (range 13) 5053 | -10/Subcaves | Shifting Twisted Machinery released Sub. Monowheel 5155 | -10/Subcaves | Shifting Twisted Machinery released Flamer 5183 | -10/Subcaves | Ambushed by swarm of Subdwellers 5186 | -10/Subcaves | Core integrity fell below 50% 5216 | -10/Subcaves | Core integrity fell below 20% 5225 | -10/Subcaves | Destroyed by V4-GA0(R) with Subdweller Laser Last Messages --------------- EM Pulse Gun destroyed. Subatomizers dissect the Wheel. TR-O8X(R) suffers critical hit (Burn). TR-O8X(R) affixes Scrap Shield Fragment to Scrap Shield. TR-O8X(R) overheating. TR-O8X(R) destroyed. Beam Cannon destroyed. QQ-RU1(R) affixes Scrap Shield Fragment to Scrap Shield. QQ-RU1(R) suffers critical hit (Burn). QQ-RU1(R) destroyed. PU-ENO(R) suffers critical hit (Burn). Subatomizers dissect the Wheel. PU-ENO(R) suffers critical hit (Burn). PU-ENO(R) overheating. PU-ENO(R) heat short circuits Disposable Heat Sink. PU-ENO(R) suffers critical hit (Burn). PU-ENO(R) critical meltdown. Map ----- +----------------------------------------------------+ | ?????????????????????????????????????????????????? | | ?????????????????????????????????????????????????? | | ?????????????????????????????????????????????????? | | ?????????????????????????????????????????????????? | | ?????????????????????????????????????????????????? | | ?????????????????????????????????????????????????? | | ?????????????????????????????????????????????????? | | ?????????????????????????????????????????????????? | | ?????????????????????????????????????????????????? | | ?????????????????????????????????????????????????? | | ?????????????????????????????????????????????????? | | ?????????????????????????????????????????????????? | | ?????????????????????????????????????????????????? | | ?????????????????????????????????????????????????? | | ?????????????????????????????????????????????????? | | ?????????????????????????????????????????????????? | | ?????????????????????##??????????????????????????? | | ?????????????????????# ?######???????????????????? | | ???????????????????### ## ##??????????????????? | | ??###??###?#########;#;; #??????????????????? | | ###"#### ### ## ## ?????????????? | | "" "" ??????????????? | | < "" #?????????????????????? | | "" ### "" " !g & ##????????????????????? | | ## ####?# """###=%*g!!!] #????????????????????? | | ?## #??? """" ### = !g&@%##????????????????????? | | #?## "" """""" ##"" #!|%[#?????????????????????? | | ##?## """"" """ " "" ##%&&%* ??????????????????? | | #??##"""" # ### "###R!%%!" ???????????????? | | #????#""#####?## ##?!%[%!"&# ????????????? | | #?????"##??????## ##??##![&"##? ?????????????? | | ##??????#????????###????##=%&#???? ?????????????? | | ??????????????????????????#% ?????#?????????????? | | ???????????????????????????;###??????????????????? | | ???????????????????????????##????????????????????? | | ?????????????????????????????????????????????????? | | ?????????????????????????????????????????????????? | | ?????????????????????????????????????????????????? | | ?????????????????????????????????????????????????? | | ?????????????????????????????????????????????????? | | ?????????????????????????????????????????????????? | | ?????????????????????????????????????????????????? | | ?????????????????????????????????????????????????? | | ?????????????????????????????????????????????????? | | ?????????????????????????????????????????????????? | | ?????????????????????????????????????????????????? | | ?????????????????????????????????????????????????? | | ?????????????????????????????????????????????????? | | ?????????????????????????????????????????????????? | | | +----------------------------------------------------+ Best States ------------- Heat Dissipation 25 Energy Generation 10 Energy Capacity 125 Matter Stores 300 Matter Capacity 300 Sight Range 16 Terrain Scan Density 10 Armor Coverage 150 Resistance: KI 35 Resistance: TH 35 Resistance: EX 35 Resistance: EM 35 Resistance: I 35 Resistance: S 35 Resistance: P 35 Utility Shielding 33 Evasion (%) 50 Targeting Accuracy 5 Recoil Reduction 2 Offensive Hacking 20 Item Schematics ----------------- None Robot Schematics ------------------ None Fabricated ------------ Nothing Repaired ---------- Nothing Studied --------- None Alien Tech Used ----------------- None Achievements -------------- There's More Where That Came From Challenges ------------ None Game ------ Seed ModifiedLightpackBattery Manual? 0 Play Time 00:11:09 Cumulative 0.9 hours Start 2025.11.16 @ 21:17:35 End 2025.11.16 @ 21:27:38 Sessions 1 Manual Loads 0 Difficulty Explorer Special Mode None Game No. 5 Rogue 0 Adventurer 0 Explorer 5 Win Type - Total 0 Types 0/0/0/0/0/0/0/0/0/0 Lore% 0 Gallery% 1 Achievement% 1 Wizard Run 0 Options --------- Layout 1 ASCII 0 Keyboard 0 Movement Numpad Keybinds 0 Fullscreen 1 Font 16/X11Caps Map View 25x20 Zoom Use 98% Tactical HUD 0 Map Filters NONE Filters NONE Steam SD RUN: 1b43c8cc-6f79-44a7-b1a7-cec085e9e1b4